Cogmind - Beta 11 X8 @@@ ROGUE MODE // 2021.11.03 @ 12:47:45 Player: thomas Result: Self-destructed Performance ------------- Evolutions (2) 1000 Regions Visited (5) 1000 Robots Destroyed (18) 90 Value Destroyed (475) 475 Prototype IDs (23) 460 Alien Tech Used (0) 0 Bonus (300) 300 TOTAL SCORE: 3325 Bonus ------- Aligned with FarCom 300 Cogmind --------- Core Integrity 550/550 Matter 228/300 Energy 250/250 System Corruption 0% Temperature Cool (1) Movement Flying (50) Location -8/Materials Parts ------- > --- POWER (1) -------- Ion Engine > --- PROPULSION (4) --- Flying Fortress v7 > --- UTILITY (4) ------ Medium Storage Unit Advanced Targeting Computer Light Armor Plating Hacking Suite > --- WEAPON (2) ------- Assault Rifle Katana > --- INVENTORY (10) --- Ion Engine Aluminum Leg Improved Heat Sink Compact Matter Pod (150) Hardened Light Armor Plating Heavy Assault Rifle Gauss Cannon Mini Grenade Launcher Peak State ------------ > --- POWER ------------ Ion Engine > --- PROPULSION ------- Flying Fortress v7 > --- UTILITY ---------- Improved Heat Sink Medium Storage Unit Advanced Targeting Computer Hardened Light Armor Plating > --- WEAPON ----------- Assault Rifle Heavy Assault Rifle > --- INVENTORY -------- Ion Engine Aluminum Leg Compact Matter Pod Gauss Cannon Mini Grenade Launcher Katana [Rating: 46] Favorites ----------- Power Ion Engine Engine Ion Engine Propulsion Aluminum Leg Leg Aluminum Leg Flight Unit Flying Fortress v7 Utility Hardened Light Armor Plating Device Heat Shielding Storage Medium Storage Unit Processor Advanced Targeting Computer Hackware Hacking Suite Protection Hardened Light Armor Plating Weapon Heavy Assault Rifle Energy Gun Medium Laser Ballistic Gun Heavy Assault Rifle Launcher Rocket Launcher Slashing Weapon Katana Build | -11 -10 -10 -10 -9 -8 ------- Run | Scr Mat Min Exi Min Mat Slots Evolved 4 | . . . . . 4 Power . | . . . . . . Propulsion 2 | . . . . . 2 Utility 2 | . . . . . 2 Weapon . | . . . . . . Parts Attached 25 | . 5 5 . 9 6 Power 1 | . . . . 1 . Engine 1 | . . . . 1 . Core . | . . . . . . Reactor . | . . . . . . Propulsion 4 | . . . . 3 1 Treads . | . . . . . . Leg 3 | . . . . 3 . Wheel . | . . . . . . Hover . | . . . . . . Flight 1 | . . . . . 1 Utility 10 | . 4 1 . 1 4 Device 2 | . 1 . . . 1 Storage 2 | . 1 1 . . . Processor 1 | . . . . . 1 Hackware 1 | . . . . . 1 Protection 4 | . 2 . . 1 1 Artifact . | . . . . . . Weapon 10 | . 1 4 . 4 1 Energy Gun . | . . . . . . Energy Cannon . | . . . . . . Ballistic Gun 7 | . 1 3 . 3 . Ballistic Cannon . | . . . . . . Launcher 2 | . . 1 . 1 . Special Weapon . | . . . . . . Impact Weapon . | . . . . . . Slashing Weapon 1 | . . . . . 1 Piercing Weapon . | . . . . . . Special Melee Weapon . | . . . . . . Unidentified Prototypes . | . . . . . . Parts Lost 5 | . . 1 . 4 . Power . | . . . . . . Propulsion 2 | . . . . 2 . Utility 1 | . . . . 1 . Weapon 2 | . . 1 . 1 . Highest Loss Streak 4 | . . 1 . 4 . Average Slot Usage (%) 97 | . 99 100 100 97 69 Engine 13 | . 14 14 14 13 9 Leg 25 | . 28 28 28 26 . Storage 13 | . 14 14 14 14 9 Protection 13 | . 11 14 14 13 9 Energy Gun 5 | . 14 11 . . . Ballistic Gun 22 | . 14 15 28 27 16 Naked Turns . | . . . . . . Heaviest Build 35 | 13 35 35 26 27 26 Greatest Support 50 | 20 20 20 20 28 50 Greatest Overweight (x) 8 | . 1 1 1 8 . Average Overweight (x) . | . . 1 1 . . Largest Inventory Capacity 15 | 8 15 15 10 10 10 Average Capacity 11 | 8 14 11 10 10 10 Most Carried 15 | 6 15 15 10 10 10 Average Carried 10 | 6 11 10 9 9 6 Final Capacity 15 | 8 15 10 10 10 10 Final Carried 15 | 6 15 9 10 10 8 Class Distribution -------------------- 100% | Mutant Dominant Class ---------------- Mutant | -10/Materials Mutant | -10/Mines Mutant | -10/Exiles Mutant | -9/Mines Mutant | -8/Materials Resources | -11 -10 -10 -10 -9 -8 ----------- Run | Scr Mat Min Exi Min Mat Matter Collected 705 | 200 67 68 . 370 . Remotely . | . . . . . . Salvage Created 524 | . 127 96 . 251 50 Parts 33 | . 8 8 . 13 4 Haulers Intercepted . | . . . . . . Recyclers Shooed . | . . . . . . Parts Field Recycled . | . . . . . . Retrieved Matter . | . . . . . . Parts Self-Destructed . | . . . . . . Prevented . | . . . . . . Kills | -11 -10 -10 -10 -9 -8 ------- Run | Scr Mat Min Exi Min Mat Combat Hostiles Destroyed 16 | . 5 2 . 8 1 Guns 12 | . 5 2 . 4 1 AOE 4 | . . . . 4 . Classes Destroyed 5 | . 2 2 . 1 . Tunneler 2 | . . 1 . 1 . Swarmer 7 | . 3 . . 4 . Grunt 3 | . 2 . . 1 . Duelist 3 | . . . . 3 . Sentry 3 | . . 2 . . 1 Best Kill Streak 4 | . 3 2 . 4 1 Combat Bots Only 4 | . 3 2 . 4 1 Max Kills in Single Turn 1 | . 1 1 . 1 1 Gunslinging . | . . . . . . Exploded 1 | . . . . 1 . Melee . | . . . . . . Uniques/NPCs Destroyed . | . . . . . . Combat | -11 -10 -10 -10 -9 -8 -------- Run | Scr Mat Min Exi Min Mat Damage Taken 1104 | . 115 242 . 717 30 Core 96 | . 8 46 . 42 . Absorbed by Shields . | . . . . . . Core Remaining (%) 80 | 100 . . . 61 . Volleys Fired 57 | . 9 9 . 37 2 Largest 2 | . 2 2 . 2 2 Hottest 80 | . 73 80 . 46 43 Shots Fired 102 | . 18 15 . 65 4 Gun 92 | . 18 12 . 58 4 Cannon . | . . . . . . Launcher 10 | . . 3 . 7 . Special . | . . . . . . Kinetic 75 | . 9 4 . 58 4 Thermal 17 | . 9 8 . . . Explosive 10 | . . 3 . 7 . Electromagnetic . | . . . . . . Robot Hit Streak 12 | . 5 6 . 12 7 Robot Miss Streak 4 | . 3 4 . 4 . Penetration Max . | . . . . . . Secondary Targets 6 | . 3 . . 3 . Max Gunslinging Chain 1 | . 1 . . 1 . Shots Hit Robots 66 | . 12 7 . 44 3 Core Hits 33 | . 7 5 . 19 2 Critical Kills . | . . . . . . Critical Parts Destroyed . | . . . . . . Critical Strikes 2 | . 1 1 . . . Burn 2 | . 1 1 . . . Melee Attacks 1 | . . . . . 1 Impact . | . . . . . . Slashing 1 | . . . . . 1 Piercing . | . . . . . . Sneak Attacks . | . . . . . . Combat Hostiles . | . . . . . . Follow-up Attacks . | . . . . . . Damage Inflicted 1351 | . 163 151 . 1001 36 Guns 951 | . 163 87 . 665 36 Cannons . | . . . . . . Explosions 400 | . . 64 . 336 . Melee . | . . . . . . Ramming . | . . . . . . Kinetic 809 | . 96 12 . 665 36 Thermal 142 | . 67 75 . . . Explosive 400 | . . 64 . 336 . Electromagnetic . | . . . . . . Impact . | . . . . . . Slashing . | . . . . . . Piercing . | . . . . . . Highest Corruption . | . . . . . . Average Corruption . | . . . . . . Corruption Purged . | . . . . . . Overload Shots . | . . . . . . Overflow Damage 24 | . . . . 24 . Projectiles . | . . . . . . Explosions 24 | . . . . 24 . Melee . | . . . . . . Knockbacks . | . . . . . . Impact . | . . . . . . Kinetic . | . . . . . . Secondary . | . . . . . . Self-Inflicted Damage 40 | . . . . 40 . Shots 1 | . . . . 1 . Rammed . | . . . . . . Targets Rammed . | . . . . . . Kicked . | . . . . . . Crushed . | . . . . . . Highest Temperature 198 | . 76 198 . 10 . Average Temperature 53 | . 32 87 . 4 . Received Heat Transfer 141 | . 42 72 . 9 18 Siege Activations . | . . . . . . Robots Corrupted . | . . . . . . Combat Hostiles . | . . . . . . Parts Fried . | . . . . . . Impact Corruptions . | . . . . . . Robots Melted . | . . . . . . Combat Hostiles . | . . . . . . Parts Melted 3 | . 2 1 . . . Heat Transferred 555 | . 259 296 . . . Parts Sabotaged . | . . . . . . Parts Stolen . | . . . . . . Parts Stripped . | . . . . . . Power Chain Reactions . | . . . . . . Missiles Intercepted . | . . . . . . Alert | -11 -10 -10 -10 -9 -8 ------- Run | Scr Mat Min Exi Min Mat Peak Influence 151 | . 151 55 . 90 61 Initial 5 | . . 5 . . . Average 30 | . 52 10 . 24 34 Maximum Alert Level . | . . . . . . Low Security (%) 100 | 100 100 100 . 100 100 Level 1 . | . . . . . . Level 2 . | . . . . . . Level 3 . | . . . . . . Level 4 . | . . . . . . Level 5 . | . . . . . . High Security . | . . . . . . Max Security . | . . . . . . Squads Dispatched 2 | . 1 . . 1 . Investigation . | . . . . . . Extermination . | . . . . . . Reinforcement 1 | . 1 . . . . Assault 1 | . . . . 1 . Garrison . | . . . . . . Intercept . | . . . . . . Construction Impeded . | . . . . . . Haulers Reinforced . | . . . . . . Active Scanning Responses . | . . . . . . Cargo Convoy Interrupts . | . . . . . . Stealth | -11 -10 -10 -10 -9 -8 --------- Run | Scr Mat Min Exi Min Mat Distress Signals . | . . . . . . Communications Jammed . | . . . . . . Distress Signals . | . . . . . . Times Spotted 31 | . 14 2 . 14 1 Peak Tracking Total 5 | . 3 2 . 5 2 Tactical Retreats 1 | . . . . . 1 Traps | -11 -10 -10 -10 -9 -8 ------- Run | Scr Mat Min Exi Min Mat Traps Triggered . | . . . . . . Indirectly . | . . . . . . Trap Hack Attempts . | . . . . . . Triggered . | . . . . . . Disarmed . | . . . . . . Reprogrammed . | . . . . . . Reused . | . . . . . . Traps Extracted . | . . . . . . Installed . | . . . . . . Triggered . | . . . . . . Exploded 1 | . . . 1 . . Machines | -11 -10 -10 -10 -9 -8 ---------- Run | Scr Mat Min Exi Min Mat Machines Disabled 2 | . . 2 . . . Max in Single Turn 1 | . . 1 . . . Garrison Access 1 | . . . . . 1 Machines Sabotaged . | . . . . . . Garrisons Compromised . | . . . . . . Overloaded Fab Kills . | . . . . . . Hacking | -11 -10 -10 -10 -9 -8 --------- Run | Scr Mat Min Exi Min Mat Machines Accessed 6 | . 4 . 1 . 1 Terminals 4 | . 4 . . . . Fabricators . | . . . . . . Repair Stations . | . . . . . . Recycling Units . | . . . . . . Scanalyzers . | . . . . . . Garrison Access 1 | . . . . . 1 Total Hacks 20 | . 17 . 1 . 2 Successful 11 | . 9 . 1 . 1 Failed 9 | . 8 . . . 1 Catastrophic . | . . . . . . Database Lockouts . | . . . . . . Manual 14 | . 13 . 1 . . Terminals 17 | . 17 . . . . Fabricators . | . . . . . . Repair Stations . | . . . . . . Recycling Units . | . . . . . . Scanalyzers . | . . . . . . Garrison Access 2 | . . . . . 2 Terminal Hacks 6 | . 5 . 1 . . Robot Analysis 3 | . 3 . . . . Dispatch Records 1 | . 1 . . . . Zone Layout 1 | . 1 . . . . EX-Prototype ID Bank 1 | . . . 1 . . Fabricator Hacks . | . . . . . . Repair Station Hacks . | . . . . . . Recycling Unit Hacks . | . . . . . . Scanalyzer . | . . . . . . Garrison Access Hacks 1 | . . . . . 1 Seal Access 1 | . . . . . 1 Unauthorized Hacks 4 | . 4 . . . . Terminals 4 | . 4 . . . . Track 1 | . 1 . . . . Botnet 3 | . 3 . . . . Fabricators . | . . . . . . Repair Stations . | . . . . . . Recycling Units . | . . . . . . Scanalyzers . | . . . . . . Garrison Access . | . . . . . . Data Cores Recovered . | . . . . . . Used . | . . . . . . Hacking Detections 5 | . 4 . . . 1 Full Trace Events . | . . . . . . Feedback Events . | . . . . . . Feedback Blocked . | . . . . . . Robot Schematics Acquired . | . . . . . . Robots Built . | . . . . . . Authchips . | . . . . . . Time . | . . . . . . Total Robot Build Rating . | . . . . . . Part Schematics Acquired . | . . . . . . Parts Built . | . . . . . . Authchips . | . . . . . . Time . | . . . . . . Total Part Build Rating . | . . . . . . Parts Repaired . | . . . . . . Time . | . . . . . . Parts Recycled . | . . . . . . Recycled Matter . | . . . . . . Retrieved Matter . | . . . . . . Retrieved Components . | . . . . . . Parts Scanalyzed . | . . . . . . Part Schematics Acquired . | . . . . . . Parts Damaged . | . . . . . . Bothacking | -11 -10 -10 -10 -9 -8 ------------ Run | Scr Mat Min Exi Min Mat Used RIF Installer . | . . . . . . Robots Hacked . | . . . . . . Non-combat . | . . . . . . Combat . | . . . . . . Robot Hacks Applied . | . . . . . . Relay Couplers Released . | . . . . . . Robots Rewired . | . . . . . . Allies Hacked . | . . . . . . Hacks Repelled . | . . . . . . Allies | -11 -10 -10 -10 -9 -8 -------- Run | Scr Mat Min Exi Min Mat Total Allies 1 | . . . . 1 . Largest Group 1 | . . . . 1 . Highest-Rated Group 31 | . . . . 31 . Highest-Rated Ally 31 | . . . . 31 . Total Orders . | . . . . . . Ally Attacks 5 | . . . . 5 . Total Damage . | . . . . . . Kills . | . . . . . . Allies Corrupted . | . . . . . . Allies Melted . | . . . . . . Intel | -11 -10 -10 -10 -9 -8 ------- Run | Scr Mat Min Exi Min Mat Robot Analysis Total 3 | . 3 . . . . Derelict Logs Recovered 2 | . . 1 . 1 . Drone Launches . | . . . . . . Drone Recoveries . | . . . . . . Exploration | -11 -10 -10 -10 -9 -8 ------------- Run | Scr Mat Min Exi Min Mat Turns Passed 2935 | 8 704 454 404 1211 154 Spaces Moved 1768 | 7 362 220 212 732 235 Core 7 | . . . . 7 . Treads . | . . . . . . Legs 1526 | 7 362 220 212 725 . Wheels . | . . . . . . Hover . | . . . . . . Flight 235 | . . . . . 235 Fastest Speed 50 | 120 120 190 190 120 50 Average Speed 150 | 120 179 190 190 146 50 Slowest Speed 450 | 120 190 190 190 450 50 Overloaded Moves . | . . . . . . Propulsion Burnouts . | . . . . . . Robots Hopped . | . . . . . . Cave-ins Triggered . | . . . . . . Exploration Rate (%) 46 | 2 53 58 61 86 16 Regions Visited 5 Branch Regions 3 Pre-discovered Areas 2 | . . 1 . 1 . Known Exits Taken . | . . . . . . Unknown Exits Taken 5 | 1 1 1 1 1 . Scrap Searched 2 | . . . . 2 . Spaces Dug 1 | . . . . . 1 Terrain Destroyed 69 | . . 13 . 55 1 Melee 1 | . . . . . 1 Projectile . | . . . . . . AOE 68 | . . 13 . 55 . Terrain Rammed . | . . . . . . Walls Destroyed . | . . . . . . Machines Disabled . | . . . . . . Actions | -11 -10 -10 -10 -9 -8 --------- Run | Scr Mat Min Exi Min Mat Total 1932 | 6 399 240 215 807 265 Wait 49 | . 8 . . 24 17 Move 1763 | 6 361 219 211 731 235 Hop . | . . . . . . Pick Up 21 | . 10 5 1 4 1 Fast Attach 9 | . 3 1 . 3 2 Attach 6 | . . 1 . 3 2 Detach 2 | . 1 . . . 1 Swap 10 | . 2 3 . 3 2 Drop 14 | . 5 2 3 2 2 Fire 57 | . 9 9 . 37 2 Melee 1 | . . . . . 1 Ram . | . . . . . . Kick . | . . . . . . Crush . | . . . . . . Escape Stasis . | . . . . . . Rewire . | . . . . . . Trap . | . . . . . . Miscellaneous . | . . . . . . Route ------- -11/Scrapyard -10/Materials (discovered 3 exits: [*Mat x2] / [*Min]) -10/Mines (discovered 2 exits: [*Mat] / *Exi) -10/Exiles -9/Mines -8/Materials (discovered 1 exit: Fac) History --------- Turn | Location | Event 1 | -11/Scrapyard | Discovered new exit (range 3) 9 | -11/Scrapyard | Entered Materials 300 | -10/Materials | Build established: Mutant 329 | -10/Materials | Discovered new exit (range 8) 523 | -10/Materials | Discovered new exit (range 15) 677 | -10/Materials | Discovered new exit (range 9) 713 | -10/Materials | Entered Mines 713 | -10/Mines | Discovered new exit (range 11) 1021 | -10/Mines | Learned location of Zion (-7) 1159 | -10/Mines | Deemed a non-threat by the Exiles lab entrance 1159 | -10/Mines | Discovered new exit (range 5) 1167 | -10/Mines | Entered Exiles 1213 | -10/Exiles | Met 8R-AWN 1245 | -10/Exiles | Met EX-HEX 1297 | -10/Exiles | Met EX-BIN 1319 | -10/Exiles | Aligned with FarCom system 1321 | -10/Exiles | Given EX-Vault access code 1369 | -10/Exiles | Opened EX-Vault 1384 | -10/Exiles | Found Flying Fortress v7 1428 | -10/Exiles | Warned to stay clear of 0b10 Research branches 1448 | -10/Exiles | Exiles lab attacked by MAIN.C 1550 | -10/Exiles | Discovered new exit (range 14) 1571 | -10/Exiles | Left Exiles lab with Flying Fortress v7 1571 | -10/Exiles | Entered Mines 1572 | -9/Mines | Learned location of Storage (-9) 1684 | -9/Mines | Received a Rocket Launcher from a helpful Derelict 1886 | -9/Mines | Met a Derelict testing a Signal Generator 1977 | -9/Mines | Assembled infested the area 1982 | -9/Mines | Assisted by a Guerilla fighting off Assembled 2157 | -9/Mines | Lost 4 parts (2n1u1w) 2501 | -9/Mines | Discovered new exit (range 5) 2671 | -9/Mines | Learned location of 1 exit from Materials 2782 | -9/Mines | Entered Materials 2782 | -8/Materials | Evolved 4 slots: Propulsion x2, Utility x2 2783 | -8/Materials | Identified exit to Factory 2936 | -8/Materials | Self-destructed Last Messages --------------- Data stored: Materials exits (x1). PARAMETERS=PROPULSION+2,UTILITY+2 LOCATION=UNKNOWN GOAL=ESCAPE 02782_ Receiving FarCom transmissions... 02782_ Dropped Imp. Aluminum Leg. Loading 1 Materials exit... 02783_ Dropped Carbon-fiber Leg. 02807_ K-01 Serf collects debris. 02814_ Acquired Gauss Cannon. 02827_ Acquired Adv. Targeting Computer. 02841_ Processing Tank disabled. 02843_ Y-45 Defender destroyed. 02857_ Acquired Hacking Suite. 02911_ K-01 Serf collects debris. 02921_ Connecting with Garrison Access... 02921_ Current location identified: Materials >>Seal Access door sealed. 02926_ K-01 Serf collects debris. Map ----- +----------------------------------------------------+ | | | | | | | | | | | | | | | | | | | ?????????????????????????????????????????????????? | | ?????????????????????????????????????????????????? | | ?????????????????????????????????????????????????? | | ?????????????????????????????????####????????????? | | ????????????????????????????????? #????????????? | | #####?????????????????????????"" #????????????? | | #??????????????????????#""""" #????????????? | | #??????????????????????#""""" #????????????? | | #??????????????????????#""""" #????????????? | | #??????????????????????# """ #####?######?? | | #??????????????????????# # #? #?? | | #????########??????????# ! #== # #?? | | #????#]][[!!#???????????? ??# # ] #?? | | #????#] [[!!#?????#########+##### + #?? | | #????# #?????# # =#?? | | ########## ####### # #?? | | @ #?######?? | | ############/#####?????? | | ##+#####+###+########## #???????# #?????? | | # # ## #???????# #?????? | | # ! + """" [ ## r#???????# #?????? | | # # """" ## ^#???????# #?????? | | # # """" + #???????# #?????? | | # !!! # ## #???????# #?????? | | # !!! # ! ## #???????# #?????? | | # !!! ############ #???????# #?????? | | # #??????????# #???????# #?????? | | ## ########??????????# +???????#### #######???? | | #####????????????????? #???????# #???? | | ?????????????????????? r #???????# " #???? | | ?????????????????????? #???????# """ "G" #???? | | ??????????????????????? ????????# """ " " #???? | | ??????????????????????????????????# """ #???? | | ??????????????????????????????????# #???? | | ??????????????????????????????????####+#######???? | | ?????????????????????????????????????????????????? | | ?????????????????????????????????????????????????? | | ?????????????????????????????????????????????????? | | ?????????????????????????????????????????????????? | | ?????????????????????????????????????????????????? | | ?????????????????????????????????????????????????? | +----------------------------------------------------+ Best States ------------- Heat Dissipation 45 Energy Generation 10 Energy Capacity 250 Matter Stores 300 Matter Capacity 300 Sight Range 16 Terrain Scan Density 10 Heat Shielding 75 Armor Coverage 150 Core Shielding 20 Evasion (%) 60 Targeting Accuracy 8 Offensive Hacking 10 Item Schematics ----------------- None Robot Schematics ------------------ None Fabricated ------------ Nothing Alien Tech Used ----------------- None Achievements -------------- None Challenges ------------ None Game ------ Seed ContainmentMicrowarpDevice Manual? 0 Play Time 00:21:21 Cumulative 33.1 hours Start 2021.11.02 @ 10:29:29 End 2021.11.03 @ 12:47:45 Sessions 3 Manual Loads 0 Difficulty Rogue Special Mode None Game No. 48 Rogue 28 Adventurer 17 Explorer 3 Win Type - Total 1 Types 0/0/1/0/0/0/0/0/0 Lore% 23 Gallery% 32 Achievement% 40 Wizard Run 0 Options --------- ASCII 1 Keyboard 1 Movement Vi Keybinds 0 Fullscreen 2 Font 24/Terminus Map View 76x50 Tactical HUD 1 Map Filters SATURATION(65) Filters SATURATION(65) Steam 1 RUN: 1e33668d-6c7d-45d7-b359-9498bcc6c77e